fUSD/lending_fUSD_20250519
["ID","MTS","AMOUNT","RATE_DAILY","PERIOD"]
[361619161,1747643465036,-779.03,0.00013917,2]
[361619162,1747643465046,-524.94,0.00013917,2]
[361619163,1747643465055,-420.0,0.00013917,2]
[361619164,1747643465065,-184.036428,0.00013917,2]
[361619165,1747643465074,-184.036428,0.00013917,2]
[361619166,1747643465083,-337.19531557,0.00013917,2]
[361619167,1747643465092,-420.0,0.00013917,2]
[361619168,1747643465102,-420.0,0.00013917,2]
[361619169,1747643465111,-184.036428,0.00013917,2]
[361619170,1747643465122,-184.036428,0.00013917,2]
[361619171,1747643465131,-573.24,0.00013917,2]
[361619172,1747643465140,-420.0,0.00013917,2]
[361619173,1747643465150,-451.94,0.00013917,2]
[361619174,1747643465159,-1119.01,0.00013917,2]
[361619175,1747643465169,-910.79,0.00013917,2]
[361619176,1747643465179,-420.0,0.00013917,2]
[361619177,1747643465188,-420.0,0.00013917,2]
[361619178,1747643465197,-567.5,0.00013917,2]
[361619179,1747643465207,-599.83,0.00013917,2]
[361619180,1747643465217,-546.7,0.00013917,2]
[361619181,1747643465227,-151.0,0.00013917,2]
[361619182,1747643465237,-151.0,0.00013917,2]
[361619183,1747643465246,-151.0,0.00013917,2]
[361619184,1747643465256,-420.0,0.00013917,2]
[361619185,1747643465266,-151.0,0.00013917,2]
[361619186,1747643465275,-320.0,0.00013917,2]
[361619187,1747643465284,-693.19,0.00013917,2]
[361619188,1747643465294,-340.0,0.00013917,2]
[361619189,1747643465304,-151.0,0.00013917,2]
[361619190,1747643465313,-824.78,0.00013917,2]
[361619191,1747643465323,-151.0,0.00013917,2]
[361619192,1747643465332,-458.24,0.00013917,2]
[361619193,1747643465342,-420.0,0.00013917,2]
[361619194,1747643465352,-571.17,0.00013917,2]
[361619195,1747643465361,-1077.34,0.00013917,2]
[361619196,1747643465371,-420.0,0.00013917,2]
[361619197,1747643465380,-748.64,0.00013917,2]
[361619198,1747643465390,-420.0,0.00013917,2]
[361619199,1747643465400,-540.516809,0.00013917,2]
[361619200,1747643465410,-540.516809,0.00013917,2]
[361619201,1747643465420,-426.41,0.00013917,2]
[361619202,1747643465429,-869.14,0.00013917,2]
[361619203,1747643465438,-1415.38,0.00013917,2]
[361619204,1747643465448,-420.0,0.00013917,2]
[361619205,1747643465457,-431.79,0.00013917,2]
[361619206,1747643465466,-540.516809,0.00013917,2]
[361619207,1747643465477,-540.516809,0.00013917,2]
[361619208,1747643465486,-291.2175,0.00013917,2]
[361619209,1747643465496,-822.35,0.00013917,2]
[361619210,1747643465506,-420.0,0.00013917,2]
[361619211,1747643465516,-420.0,0.00013917,2]
[361619212,1747643465525,-2046.68,0.00013917,2]
[361619213,1747643465535,-166.275075,0.00013917,2]
[361619214,1747643465545,-166.275075,0.00013917,2]
[361619215,1747643465555,-166.275075,0.00013917,2]
[361619216,1747643465565,-1087.59,0.00013917,2]
[361619217,1747643465577,-166.275075,0.00013917,2]
[361619218,1747643465587,-420.0,0.00013917,2]
[361619219,1747643465597,-166.275075,0.00013917,2]
[361619220,1747643465606,-166.275075,0.00013917,2]
[361619221,1747643465622,-420.0,0.00013917,2]
[361619222,1747643465632,-151.0,0.00013917,2]
[361619223,1747643465641,-151.0,0.00013917,2]
[361619224,1747643465651,-1345.2,0.00013917,2]
[361619225,1747643465662,-420.0,0.00013917,2]
[361619226,1747643465671,-193.00614269,0.00013917,2]
[361619227,1747643465686,-509.69385731,0.00013917,2]
[361619228,1747643465696,-115.25198657,0.00013917,2]
[361619229,1747643465709,-666.53801343,0.00013917,2]
[361619230,1747643465719,-420.0,0.00013917,2]
[361619231,1747643465729,-553.01,0.00013917,2]
[361619232,1747643465739,-842.53,0.00013917,2]
[361619233,1747643465748,-155.291534,0.00013917,2]
[361619234,1747643465758,-420.0,0.00013917,2]
[361619235,1747643465768,-155.291534,0.00013917,2]
[361619236,1747643465778,-61.83222993,0.00013917,2]
[361619237,1747643465806,-93.45930407,0.00013917,2]
[361619238,1747643465816,-420.0,0.00013917,2]
[361619239,1747643465826,-155.291534,0.00013917,2]
[361619240,1747643465836,-155.291534,0.00013917,2]
[361619241,1747643465846,-155.291534,0.00013917,2]
[361619242,1747643465856,-1004.6,0.00013917,2]
[361619243,1747643465867,-420.0,0.00013917,2]
[361619244,1747643465877,-420.0,0.00013917,2]
[361619245,1747643465887,-420.0,0.00013917,2]
[361619246,1747643465897,-456.77,0.00013917,2]
[361619247,1747643465907,-778.15,0.00013917,2]
[361619248,1747643465918,-2216.78,0.00013917,2]
[361619249,1747643465927,-420.0,0.00013917,2]
[361619250,1747643465937,-714.15,0.00013917,2]
[361619251,1747643465947,-420.0,0.00013917,2]
[361619252,1747643465956,-979.13,0.00013917,2]
[361619253,1747643465966,-954.15,0.00013917,2]
[361619254,1747643465976,-614.6,0.00013917,2]
[361619255,1747643465986,-420.0,0.00013917,2]
[361619256,1747643465995,-582.41,0.00013917,2]
[361619257,1747643466006,-420.0,0.00013917,2]
[361619258,1747643466018,-626.47,0.00013917,2]
[361619259,1747643466027,-420.0,0.00013917,2]
[361619260,1747643466037,-420.0,0.00013917,2]
[361619261,1747643466047,-420.0,0.00013917,2]
[361619262,1747643466057,-1210.2,0.00013917,2]
[361619263,1747643466067,-470.64,0.00013917,2]
[361619264,1747643466077,-420.0,0.00013917,2]
[361619265,1747643466087,-1134.21,0.00013917,2]
[361619266,1747643466097,-308.35801182,0.00013917,2]
[361619267,1747643466107,-601.04,0.00013917,2]
[361619268,1747643466117,-363.33503569,0.00013917,2]
[361619269,1747643466128,-992.79,0.00013917,2]
[361619270,1747643466138,-420.0,0.00013917,2]
[361619271,1747643466148,-735.59,0.00013917,2]
[361619272,1747643466158,-1664.36,0.00013917,2]
[361619273,1747643466167,-1213.81,0.00013917,2]
[361619274,1747643466177,-420.0,0.00013917,2]
[361619275,1747643466187,-553.92,0.00013917,2]
[361619276,1747643466197,-164.167565,0.00013917,2]
[361619277,1747643466206,-164.167565,0.00013917,2]
[361619278,1747643466215,-962.68,0.00013917,2]
[361619279,1747643466225,-420.0,0.00013917,2]
[361619280,1747643466234,-427.02,0.00013917,2]
[361619281,1747643466244,-164.167565,0.00013917,2]
[361619282,1747643466254,-164.167565,0.00013917,2]
[361619283,1747643466264,-420.0,0.00013917,2]
[361619284,1747643466273,-303.86509828,0.00013917,2]
[361619285,1747643466283,-876.58,0.00013917,2]
[361619286,1747643466296,-1753.98331425,0.00013917,2]
[361619287,1747643466337,-166.12668575,0.00013917,2]
[361619288,1747643466347,-420.0,0.00013917,2]
[361619289,1747643466356,-420.0,0.00013917,2]
[361619290,1747643466365,-1300.17666925,0.00013917,2]
[361619292,1747643533232,4826.88,0.0002,30]
[361619293,1747643573816,960.08,0.00010846,2]
[361619294,1747643595186,500.0,0.00025723,120]
[361619296,1747643917720,3000.0,0.00027,120]
[361619307,1747644450180,-2641.4542659,0.00012559,2]
[361619308,1747644507858,150.0,0.00012458,7]
[361619309,1747644554442,200.0,0.000137,5]
[361619310,1747644556581,200.0,0.000138,5]
[361619312,1747644558889,800.0,0.000139,5]
[361619313,1747644626158,151.2,0.000135,7]
[361619314,1747644631079,162.0,0.000135,7]
[361619317,1747644632005,-1000.0,0.00012429,2]
[361619318,1747644632014,-1099.31,0.00012432,2]
[361619319,1747644632023,-164.93,0.00012439,2]
[361619320,1747644632033,-9.84618175,0.00012447,2]
[361619321,1747644632044,-190.15381825,0.00012447,2]
[361619322,1747644632055,-250.0,0.00012447,2]
[361619323,1747644632064,-1198.48,0.00012465,2]
[361619324,1747644632074,-629.47,0.00012487,2]
[361619325,1747644632368,-200.0,0.00012502,2]
[361619326,1747644632379,-141.39210614,0.00012559,2]
[361619327,1747644632390,-1217.15362796,0.00012559,2]
[361619328,1747644632399,-500.0,0.00012567,2]
[361619329,1747644632408,-1175.69795892,0.00012576,2]
[361619344,1747644632558,-24.30204108,0.00012576,2]
[361619346,1747644632568,-245.09795892,0.00012577,2]
[361619354,1747644632727,-692.5527292,0.00012577,2]
[361619355,1747644633581,258.0,0.000135,7]
[361619361,1747644637982,-5433.59031503,0.00012577,2]
[361619362,1747644637994,-401.0,0.00012577,2]
[361619363,1747644638022,-4167.44082712,0.00012577,2]
[361619364,1747644638036,-199.03816973,0.00012577,2]
[361619365,1747644638046,-250.0,0.00012656,2]
[361619366,1747644638055,-500.0,0.00012664,2]
[361619367,1747644638065,-200.0,0.00012664,2]
[361619368,1747644638075,-319.40899046,0.00012719,2]
[361619369,1747644638087,-1834.57867756,0.00012719,2]
[361619370,1747644638127,-476.33,0.00012719,2]
[361619371,1747644638142,-2668.39233198,0.00012719,2]
[361619372,1747644638151,-500.0,0.00012877,2]
[361619373,1747644638160,-816.0,0.00012936,2]
[361619374,1747644638170,-200.0,0.00013,4]
[361619375,1747644638179,-1158.37,0.00013,2]
[361619376,1747644638189,-458.06,0.00013,2]
[361619377,1747644638198,-805.14,0.00013,2]
[361619378,1747644638207,-218.37,0.00013,2]
[361619379,1747644638217,-218.37,0.00013,2]
[361619380,1747644638227,-218.37,0.00013,2]
[361619382,1747644638236,-218.37,0.00013,2]
[361619384,1747644638246,-218.37,0.00013,2]
[361619385,1747644638255,-1102.3,0.00013,2]
[361619386,1747644638265,-1102.3,0.00013,2]
[361619387,1747644638274,-1102.3,0.00013,2]
[361619388,1747644638284,-1102.3,0.00013,2]
[361619389,1747644638293,-1102.3,0.00013,2]
[361619390,1747644638302,-151.2,0.00013,4]
[361619391,1747644638312,-192.97297297,0.00013,4]
[361619392,1747644638322,-528.0,0.00013001,2]
[361619393,1747644638331,-207.4,0.00013006,2]
[361619394,1747644638340,-537.0,0.00013096,2]
[361619395,1747644638349,-353.24,0.00013096,2]
[361619396,1747644638358,-353.24,0.00013096,2]
[361619397,1747644638368,-185.7,0.000131,2]
[361619398,1747644638377,-2167.74,0.000131,2]
[361619399,1747644638387,-353.24,0.000131,2]
[361619400,1747644638397,-353.24,0.000131,2]
[361619401,1747644638407,-353.24,0.000131,2]
[361619403,1747644638417,-500.0,0.000131,4]
[361619405,1747644638427,-960.08,0.0001311,2]
[361619407,1747644638436,-150.0,0.000132,2]
[361619409,1747644638446,-1158.37,0.000132,2]
[361619411,1747644638455,-453.11,0.000132,2]
[361619413,1747644638465,-453.11,0.000132,2]
[361619415,1747644638474,-150.0,0.000132,2]
[361619417,1747644638484,-1158.37,0.000132,2]
[361619419,1747644638493,-800.0,0.000132,4]
[361619421,1747644638503,-1100.0,0.000133,4]
[361619423,1747644638513,-500.0,0.00013397,2]
[361619425,1747644638523,-1400.0,0.000134,4]
[361619427,1747644638533,-200.0,0.000135,4]
[361619429,1747644638544,-500.0,0.00013507,2]
[361619431,1747644638553,-197.17773652,0.00013513,2]
[361619433,1747644638562,-270.7647,0.00013532,2]
[361619435,1747644638572,-500.0,0.00013582,2]
[361619436,1747644638583,-150.0,0.00013589,2]
[361619438,1747644638592,-155.0,0.0001359,2]
[361619440,1747644638602,-151.0,0.0001359,2]
[361619441,1747644638611,-139.69263634,0.0001359,2]
[361619442,1747644638623,-453.92938,0.0001359,2]
[361619443,1747644638636,-75.02984123,0.0001359,2]
[361619444,1747644638645,-867.45712868,0.0001359,2]
[361619445,1747644638657,-331.74884147,0.0001359,2]
[361619446,1747644638667,-668.65185757,0.0001359,2]
[361619447,1747644638677,-151.0,0.0001359,2]
[361619448,1747644638687,-162.05005096,0.00013596,2]
[361619449,1747644639599,164.59459459,0.000135,7]
[361619459,1747644640120,-500.0,0.00013595,2]
[361619460,1747644640130,-500.0,0.00013595,2]
[361619461,1747644640140,-500.0,0.00013595,2]
[361619462,1747644640150,-500.0,0.00013595,2]
[361619463,1747644640159,-500.0,0.00013595,2]
[361619464,1747644640169,-500.0,0.00013595,2]
[361619465,1747644640179,-500.0,0.00013595,2]
[361619466,1747644640189,-500.0,0.00013595,2]
[361619467,1747644640198,-500.0,0.00013595,2]
[361619468,1747644640208,-500.0,0.00013595,2]
[361619469,1747644640217,-500.0,0.00013595,2]
[361619470,1747644640227,-500.0,0.00013595,2]
[361619471,1747644640237,-500.0,0.00013595,2]
[361619472,1747644640246,-500.0,0.00013595,2]
[361619473,1747644640255,-500.0,0.00013595,2]
[361619474,1747644640265,-548.51405971,0.00013595,2]
[361619475,1747644640274,-500.0,0.00013595,2]
[361619476,1747644640284,-500.0,0.00013595,2]
[361619477,1747644640293,-500.0,0.00013595,2]
[361619478,1747644640303,-500.0,0.00013595,2]
[361619479,1747644640312,-500.0,0.00013595,2]
[361619480,1747644640322,-500.0,0.00013595,2]
[361619481,1747644640331,-500.0,0.00013595,2]
[361619482,1747644640340,-500.0,0.00013595,2]
[361619483,1747644640350,-500.0,0.00013595,2]
[361619484,1747644640358,-500.0,0.00013595,2]
[361619485,1747644640368,-500.0,0.00013595,2]
[361619486,1747644640377,-500.0,0.00013595,2]
[361619487,1747644640387,-500.0,0.00013595,2]
[361619488,1747644640396,-500.0,0.00013595,2]
[361619489,1747644640405,-500.0,0.00013595,2]
[361619490,1747644640414,-500.0,0.00013595,2]
[361619491,1747644640423,-500.0,0.00013595,2]
[361619492,1747644640433,-7647.42082057,0.00013596,2]
[361619493,1747644640442,-328.47923704,0.00013598,2]
[361619494,1747644640451,-344.00139748,0.00013598,2]
[361619495,1747644640460,-7060.62351861,0.00013598,2]
[361619496,1747644640470,-168.0053687,0.00013598,2]
[361619497,1747644640479,-186.75433286,0.00013598,2]
[361619498,1747644640488,-8468.9865,0.00013598,2]
[361619499,1747644640497,-2067.2575,0.00013598,2]
[361619500,1747644640506,-1000.0,0.00013598,2]
[361619501,1747644640515,-1614.372,0.00013598,2]
[361619502,1747644640524,-2500.0,0.00013598,2]
[361619503,1747644640533,-200.0,0.000136,4]
[361619504,1747644640544,-344.00139739,0.0001361,2]
[361619505,1747644640553,-10878.55015492,0.00013618,2]
[361619506,1747644640562,-344.00139739,0.00013621,2]
[361619507,1747644640572,-7060.62351853,0.00013632,2]
[361619508,1747644640582,-186.75433286,0.00013632,2]
[361619509,1747644640591,-344.00139739,0.00013633,2]
[361619510,1747644640601,-429.0806945,0.00013638,2]
[361619511,1747644640610,-1032.88382658,0.00013639,2]
[361619512,1747644640620,-1084.90758002,0.00013639,2]
[361619513,1747644640630,-1134.12204843,0.00013639,2]
[361619514,1747644640640,-1075.72620703,0.00013639,2]
[361619515,1747644640649,-1120.43099062,0.00013639,2]
[361619516,1747644640658,-1071.49869063,0.00013639,2]
[361619517,1747644640667,-1104.35799984,0.00013639,2]
[361619518,1747644640676,-344.00139739,0.00013644,2]
[361619519,1747644640685,-853.73225352,0.00013648,2]
[361619520,1747644640694,-344.00139739,0.00013656,2]
[361619521,1747644640703,-7060.62351853,0.00013665,2]
[361619522,1747644640712,-186.75433286,0.00013665,2]
[361619523,1747644640721,-344.00139739,0.00013667,2]
[361619524,1747644640730,-200.0,0.00013672,2]
[361619525,1747644640739,-250.0,0.00013672,2]
[361619526,1747644640748,-215.81506933,0.00013673,2]
[361619527,1747644640757,-500.0,0.00013673,2]
[361619528,1747644640767,-500.0,0.00013673,2]
[361619529,1747644640776,-500.0,0.00013673,2]
[361619530,1747644640785,-500.0,0.00013673,2]
[361619531,1747644640794,-500.0,0.00013673,2]
[361619532,1747644640803,-500.22188487,0.00013673,2]
[361619533,1747644640812,-374.93988138,0.00013673,2]
[361619534,1747644640821,-344.00139739,0.00013679,2]
[361619535,1747644640830,-8314.54331097,0.00013681,2]
[361619536,1747644640839,-164.93,0.00013683,2]
[361619537,1747644640848,-163.13,0.00013688,2]
[361619538,1747644640857,-325.98200242,0.00013689,2]
[361619539,1747644640867,-344.00139739,0.0001369,2]
[361619540,1747644640876,-168.934,0.00013697,2]
[361619541,1747644640885,-265.91984419,0.00013697,2]
[361619542,1747644640895,-281.01154039,0.00013697,2]
[361619543,1747644640904,-168.235,0.00013697,2]
[361619544,1747644640914,-2474.092,0.00013697,2]
[361619545,1747644640923,-6692.18374818,0.00013697,2]
[361619546,1747644640932,-1000.0,0.00013698,2]
[361619547,1747644640942,-400.0,0.00013698,2]
[361619548,1747644640951,-420.0,0.00013698,2]
[361619549,1747644640961,-446.09,0.00013698,2]
[361619550,1747644640971,-400.0,0.00013698,2]
[361619551,1747644640980,-420.0,0.00013698,2]
[361619552,1747644640990,-420.0,0.00013698,2]
[361619553,1747644641000,-420.0,0.00013698,2]
[361619554,1747644641013,-420.0,0.00013698,2]
[361619555,1747644641022,-420.0,0.00013698,2]
[361619556,1747644641032,-1010.59104096,0.00013698,2]
[361619557,1747644641042,-400.0,0.00013698,2]
[361619558,1747644641052,-450.0,0.00013698,2]
[361619559,1747644641061,-400.0,0.00013698,2]
[361619560,1747644641071,-400.0,0.00013698,2]
[361619561,1747644641080,-400.0,0.00013698,2]
[361619562,1747644641091,-400.0,0.00013698,2]
[361619563,1747644641101,-482.84,0.00013698,2]
[361619564,1747644641110,-370.0,0.00013698,2]
[361619565,1747644641120,-420.0,0.00013698,2]
[361619566,1747644641130,-325.62048889,0.00013698,2]
[361619567,1747644641139,-599.07,0.00013698,2]
[361619568,1747644641149,-462.51915197,0.00013698,2]
[361619569,1747644641158,-320.0,0.00013698,2]
[361619570,1747644641168,-420.0,0.00013698,2]
[361619571,1747644641178,-420.0,0.00013698,2]
[361619572,1747644641187,-400.0,0.00013698,2]
[361619573,1747644641197,-420.49971916,0.00013698,2]
[361619574,1747644641207,-453.86677839,0.00013698,2]
[361619575,1747644641216,-302.71533365,0.00013698,2]
[361619576,1747644641225,-349.23171662,0.00013698,2]
[361619577,1747644641235,-420.0,0.00013698,2]
[361619578,1747644641244,-400.0,0.00013698,2]
[361619579,1747644641253,-420.0,0.00013698,2]
[361619580,1747644641262,-420.0,0.00013698,2]
[361619581,1747644641272,-400.0,0.00013698,2]
[361619582,1747644641281,-410.63176689,0.00013698,2]
[361619583,1747644641291,-420.0,0.00013698,2]
[361619584,1747644641299,-420.0,0.00013698,2]
[361619585,1747644641309,-499.36,0.00013698,2]
[361619586,1747644641318,-420.0,0.00013698,2]
[361619587,1747644641327,-710.78,0.00013698,2]
[361619588,1747644641336,-406.21417887,0.00013698,2]
[361619589,1747644641345,-679.08,0.00013698,2]
[361619590,1747644641354,-407.86250084,0.00013698,2]
[361619591,1747644641363,-527.48,0.00013698,2]
[361619592,1747644641372,-420.0,0.00013698,2]
[361619593,1747644641381,-420.0,0.00013698,2]
[361619594,1747644641392,-420.0,0.00013698,2]
[361619595,1747644641659,-494.8001522,0.00013698,2]
[361619596,1747644641669,-420.0,0.00013698,2]
[361619597,1747644641679,-420.0,0.00013698,2]
[361619598,1747644641688,-420.0,0.00013698,2]
[361619599,1747644641697,-420.0,0.00013698,2]
[361619600,1747644641706,-420.0,0.00013698,2]
[361619601,1747644641715,-510.46,0.00013698,2]
[361619602,1747644641724,-400.0,0.00013698,2]
[361619603,1747644641733,-400.0,0.00013698,2]
[361619604,1747644641743,-655.73,0.00013698,2]
[361619605,1747644641751,-401.61153516,0.00013698,2]
[361619606,1747644641761,-380.0,0.00013698,2]
[361619607,1747644641769,-420.0,0.00013698,2]
[361619608,1747644641779,-420.0,0.00013698,2]
[361619609,1747644641788,-420.0,0.00013698,2]
[361619610,1747644641797,-326.4459924,0.00013698,2]
[361619611,1747644641806,-535.76,0.00013698,2]
[361619612,1747644641815,-380.0,0.00013698,2]
[361619613,1747644641823,-420.0,0.00013698,2]
[361619614,1747644641832,-420.0,0.00013698,2]
[361619615,1747644641842,-420.0,0.00013698,2]
[361619616,1747644641852,-590.41,0.00013698,2]
[361619617,1747644641861,-287.00498643,0.00013698,2]
[361619618,1747644641871,-420.0,0.00013698,2]
[361619619,1747644641880,-420.0,0.00013698,2]
[361619620,1747644641889,-420.0,0.00013698,2]
[361619621,1747644641899,-420.0,0.00013698,2]
[361619622,1747644641908,-420.0,0.00013698,2]
[361619623,1747644641916,-420.0,0.00013698,2]
[361619624,1747644641925,-420.0,0.00013698,2]
[361619625,1747644641935,-450.94,0.00013698,2]
[361619626,1747644641945,-420.0,0.00013698,2]
[361619627,1747644641954,-420.0,0.00013698,2]
[361619628,1747644641965,-400.56212363,0.00013698,2]
[361619629,1747644641974,-517.36,0.00013698,2]
[361619630,1747644641984,-500.0,0.00013698,2]
[361619631,1747644641993,-447.19,0.00013698,2]
[361619632,1747644642007,-420.0,0.00013698,2]
[361619633,1747644642017,-420.0,0.00013698,2]
[361619634,1747644642028,-400.0,0.00013698,2]
[361619635,1747644642038,-400.81825675,0.00013698,2]
[361619636,1747644642050,-525.47,0.00013698,2]
[361619637,1747644642060,-400.0,0.00013698,2]
[361619638,1747644642070,-420.0,0.00013698,2]
[361619639,1747644642082,-420.0,0.00013698,2]
[361619640,1747644642093,-420.0,0.00013698,2]
[361619641,1747644642104,-420.0,0.00013698,2]
[361619642,1747644642113,-420.0,0.00013698,2]
[361619643,1747644642122,-420.0,0.00013698,2]
[361619644,1747644642131,-420.0,0.00013698,2]
[361619645,1747644642140,-420.0,0.00013698,2]
[361619646,1747644642150,-420.0,0.00013698,2]
[361619647,1747644642159,-420.0,0.00013698,2]
[361619648,1747644642168,-627.56,0.00013698,2]
[361619649,1747644642177,-420.0,0.00013698,2]
[361619650,1747644642187,-420.0,0.00013698,2]
[361619651,1747644642196,-420.0,0.00013698,2]
[361619652,1747644642205,-420.0,0.00013698,2]
[361619653,1747644642214,-523.58,0.00013698,2]
[361619654,1747644642224,-420.0,0.00013698,2]
[361619655,1747644642233,-420.0,0.00013698,2]
[361619656,1747644642243,-403.59592664,0.00013698,2]
[361619657,1747644642252,-400.0,0.00013698,2]
[361619658,1747644642261,-400.0,0.00013698,2]
[361619659,1747644642270,-403.28142654,0.00013698,2]
[361619660,1747644642280,-638.59,0.00013698,2]
[361619661,1747644642290,-1155.39,0.00013698,2]
[361619662,1747644642299,-420.0,0.00013698,2]
[361619663,1747644642309,-420.0,0.00013698,2]
[361619664,1747644642319,-420.0,0.00013698,2]
[361619665,1747644642328,-400.0,0.00013698,2]
[361619666,1747644642337,-420.0,0.00013698,2]
[361619667,1747644642346,-420.0,0.00013698,2]
[361619668,1747644642356,-420.0,0.00013698,2]
[361619669,1747644642365,-555.60290371,0.00013698,2]
[361619670,1747644642375,-400.58935804,0.00013698,2]
[361619671,1747644642384,-400.0,0.00013698,2]
[361619672,1747644642394,-420.0,0.00013698,2]
[361619673,1747644642403,-674.16,0.00013698,2]
[361619674,1747644642413,-360.0,0.00013698,2]
[361619675,1747644642423,-498.2,0.00013698,2]
[361619676,1747644642432,-420.0,0.00013698,2]
[361619677,1747644642441,-300.0,0.00013698,2]
[361619678,1747644642450,-648.98,0.00013698,2]
[361619679,1747644642460,-465.05,0.00013698,2]
[361619680,1747644642469,-420.0,0.00013698,2]
[361619681,1747644642478,-420.0,0.00013698,2]
[361619682,1747644642487,-420.0,0.00013698,2]
[361619683,1747644642497,-420.0,0.00013698,2]
[361619684,1747644642506,-400.0,0.00013698,2]
[361619685,1747644642515,-420.0,0.00013698,2]
[361619686,1747644642524,-420.0,0.00013698,2]
[361619687,1747644642534,-453.24,0.00013698,2]
[361619688,1747644642543,-667.6,0.00013698,2]
[361619689,1747644642552,-420.0,0.00013698,2]
[361619690,1747644642562,-420.0,0.00013698,2]
[361619691,1747644642574,-320.0,0.00013698,2]
[361619692,1747644642585,-420.0,0.00013698,2]
[361619693,1747644642595,-439.03,0.00013698,2]
[361619694,1747644642605,-531.6,0.00013698,2]
[361619695,1747644642614,-420.0,0.00013698,2]
[361619696,1747644642623,-420.0,0.00013698,2]
[361619697,1747644642631,-546.72,0.00013698,2]
[361619698,1747644642641,-431.42,0.00013698,2]
[361619699,1747644642652,-420.0,0.00013698,2]
[361619700,1747644642662,-875.22,0.00013698,2]
[361619701,1747644642671,-326.72674275,0.00013698,2]
[361619702,1747644642680,-400.0,0.00013698,2]
[361619703,1747644642689,-620.02,0.00013698,2]
[361619704,1747644642698,-518.56981276,0.00013698,2]
[361619705,1747644642707,-420.0,0.00013698,2]
[361619706,1747644642717,-420.0,0.00013698,2]
[361619707,1747644642726,-1889.43,0.00013698,2]
[361619708,1747644642735,-420.0,0.00013698,2]
[361619709,1747644642744,-280.0,0.00013698,2]
[361619710,1747644642753,-533.68,0.00013698,2]
[361619711,1747644642762,-420.0,0.00013698,2]
[361619713,1747644642771,-420.0,0.00013698,2]
[361619714,1747644642780,-400.0,0.00013698,2]
[361619715,1747644642790,-459.85,0.00013698,2]
[361619716,1747644642799,-420.0,0.00013698,2]
[361619717,1747644642808,-420.0,0.00013698,2]
[361619718,1747644642817,-678.96,0.00013698,2]
[361619719,1747644642826,-420.0,0.00013698,2]
[361619720,1747644642835,-675.07,0.00013698,2]
[361619721,1747644642843,-420.0,0.00013698,2]
[361619722,1747644642853,-1071.05,0.00013698,2]
[361619723,1747644642862,-496.79,0.00013698,2]
[361619724,1747644642872,-716.92,0.00013698,2]
[361619725,1747644642881,-1002.48,0.00013698,2]
[361619726,1747644642891,-420.0,0.00013698,2]
[361619727,1747644642900,-320.0,0.00013698,2]
[361619728,1747644642909,-420.0,0.00013698,2]
[361619729,1747644642918,-420.0,0.00013698,2]
[361619730,1747644642927,-478.1,0.00013698,2]
[361619732,1747644642936,-420.0,0.00013698,2]
[361619734,1747644642945,-420.0,0.00013698,2]
[361619735,1747644642954,-420.0,0.00013698,2]